bitfinex-derivatives/quotes_ETHF0:USTF0_20241023
["timestamp","ask_amount","ask_price","bid_price","bid_amount"]
[1729719307253,1.99383,2510.4,2509.1,7.1934]
[1729719307458,0.39893,2509.4,2509.3,0.39892]
[1729719307651,4.95230733,2509.4,2509.3,0.39892]
[1729719307870,0.81931,2509.5,2509.4,0.39892]
[1729719308360,5.01925865,2509.5,2509.4,0.39892]
[1729719309559,0.39892,2509.4,2509.3,0.39892]
[1729719313264,7.82814865,2509.5,2509.0,1.41335]
[1729719313464,0.39894,2509.3,2509.2,0.39893]
[1729719318756,0.39896,2509.2,2509.1,0.39895]
[1729719319765,0.39896,2509.2,2509.0,0.4159]
[1729719320067,0.39898,2509.0,2508.9,3.60679]
[1729719320368,4.69315471,2509.0,2508.9,4.0948]
[1729719323357,4.69315471,2509.0,2508.9,3.2078]
[1729719323561,4.69315471,2509.0,2508.9,4.0948]
[1729719323767,4.69315471,2509.0,2508.9,4.49379]
[1729719325865,4.69315471,2509.0,2508.9,1.28599]
[1729719326374,4.69315471,2509.0,2508.9,2.72599]
[1729719332182,4.29417471,2509.0,2508.9,2.72599]
[1729719333187,4.29417471,2509.0,2508.9,4.18931696]
[1729719334481,0.4397,2509.1,2509.0,0.39898]
[1729719334679,0.4397,2509.1,2509.0,1.83898]
[1729719335788,0.4397,2509.1,2509.0,5.82458]
[1729719335984,0.4397,2509.1,2509.0,6.23418]
[1729719337790,3.2078,2509.4,2509.0,6.23418]
[1729719337991,3.0078,2510.3,2510.2,0.39879]
[1729719338195,0.39873,2510.6,2510.5,0.39874]
[1729719338491,0.39874,2510.5,2510.4,1.83875]
[1729719338699,1.24134,2510.5,2510.4,1.83875]
[1729719338890,5.37573889,2510.5,2510.4,1.83875]
[1729719339083,5.37573889,2510.5,2510.4,1.44]
[1729719339290,3.993,2512.4,2510.4,1.44]
[1729719339291,3.60637,2511.6,2511.3,0.3986]
[1729719339592,3.2078,2511.6,2511.4,2.326]
[1729719339992,2.23784,2511.8,2511.4,2.326]
[1729719340194,0.3993,2511.8,2511.4,5.93239]
[1729719340389,4.33036299,2511.6,2511.4,4.49239]
[1729719340694,3.2078,2511.9,2511.4,7.2038]
[1729719340890,3.2078,2511.9,2511.8,3.50853]
[1729719341095,3.2078,2511.9,2511.8,3.11]
[1729719341289,3.2078,2511.9,2511.8,3.50853]
[1729719341985,7.64103062,2511.9,2511.6,3.11]
[1729719342186,7.64103062,2511.9,2511.5,0.39858]
[1729719342392,7.64103062,2511.9,2511.6,0.886]
[1729719342599,0.39853,2511.8,2511.2,3.11]
[1729719342893,4.43323062,2511.7,2511.3,1.28461]
[1729719343192,4.43323062,2511.7,2511.0,0.39865]
[1729719343193,0.3986,2511.4,2511.0,0.39865]
[1729719343393,0.4186,2511.3,2511.1,0.886]
[1729719343592,5.03590517,2511.3,2511.1,0.886]
[1729719344196,5.03590517,2511.3,2511.0,0.886]
[1729719344400,5.03590517,2511.3,2511.1,0.39864]
[1729719345495,5.03590517,2511.3,2511.0,1.28465]
[1729719345693,5.03590517,2511.3,2511.1,0.39864]
[1729719348900,5.03590517,2511.3,2511.1,0.886]
[1729719349099,5.43451517,2511.3,2511.1,1.28464]
[1729719349297,5.43451517,2511.3,2511.1,0.886]
[1729719349495,5.43451517,2511.3,2511.1,1.28464]
[1729719352506,5.43451517,2511.3,2511.1,0.886]
[1729719352701,5.43451517,2511.3,2511.1,1.28464]
[1729719353704,5.03590517,2511.3,2511.1,0.886]
[1729719353905,5.03590517,2511.3,2511.1,1.28464]
[1729719354101,5.43452517,2511.3,2511.1,1.28464]
[1729719355000,5.03590517,2511.3,2511.1,1.28464]
[1729719355206,0.39863,2511.2,2511.1,1.28464]
[1729719355407,0.39863,2511.2,2511.1,0.886]
[1729719355607,4.81666342,2511.2,2511.1,0.886]
[1729719358398,4.81666342,2511.2,2511.0,1.28365]
[1729719359208,4.41803342,2511.2,2510.8,3.2078]
[1729719359708,0.4188,2511.1,2510.8,4.0928]
[1729719359908,0.39868,2510.9,2510.8,3.2078]
[1729719360215,5.00108511,2510.9,2510.8,3.2078]
[1729719360408,0.39871,2510.7,2510.6,0.885]
[1729719360804,5.00111511,2510.7,2510.6,0.885]
[1729719362610,5.00111511,2510.7,2510.5,3.60653]
[1729719362809,5.00111511,2510.7,2510.6,0.885]
[1729719363211,5.00111511,2510.7,2510.6,1.28372]
[1729719363611,5.40641511,2510.7,2510.6,0.885]
[1729719364510,5.40641511,2510.7,2510.6,1.28372]
[1729719364712,0.39872,2510.6,2510.5,4.52453]
[1729719365015,4.76894537,2510.6,2510.5,4.52453]
[1729719366018,4.76894537,2510.6,2510.5,3.60653]
[1729719366214,4.76894537,2510.6,2510.5,3.2078]
[1729719366416,4.76894537,2510.6,2510.5,4.1258]
[1729719366720,4.76894537,2510.6,2510.5,3.2078]
[1729719368927,4.37022537,2510.6,2510.4,1.31675]
[1729719369226,0.39874,2510.5,2510.4,1.31675]
[1729719369626,4.64048773,2510.5,2510.4,1.31675]
[1729719370516,0.39876,2510.4,2510.3,3.2078]
[1729719370922,4.65654609,2510.4,2510.3,3.2078]
[1729719371315,8.63974609,2510.4,2510.3,3.2078]
[1729719371725,4.65654609,2510.4,2510.3,3.2078]
[1729719372512,0.39877,2510.3,2510.2,0.39879]
[1729719372725,0.80667,2510.3,2510.2,0.39879]
[1729719372936,5.16694126,2510.3,2510.2,0.39879]
[1729719381723,0.39882,2510.1,2510.0,0.39881]
[1729719381921,1.8521,2510.2,2509.8,3.2078]
[1729719382121,0.39884,2510.0,2509.9,0.39882]
[1729719382627,4.95319776,2510.0,2509.9,0.39882]
[1729719383524,4.55435776,2510.0,2509.9,0.39882]
[1729719383728,4.95317776,2510.0,2509.9,0.39882]
[1729719384030,4.95317776,2510.0,2509.9,1.83882]
[1729719393330,4.95317776,2510.0,2509.9,1.44]
[1729719393536,4.95317776,2510.0,2509.9,1.83884]
[1729719393736,4.95317776,2510.0,2509.9,1.44]
[1729719394138,0.39897,2509.1,2509.0,3.2078]
[1729719394434,0.39897,2509.1,2508.7,3.2078]
[1729719394435,5.80220303,2509.1,2508.7,3.2078]
[1729719394632,1.83901,2508.8,2508.7,3.2078]
[1729719395234,6.20121303,2508.8,2508.7,3.2078]
[1729719395430,6.20121303,2508.8,2508.7,3.58215941]
[1729719395637,10.18761303,2508.8,2508.7,0.57401776]
[1729719395832,10.18761303,2508.8,2508.7,0.32444482]
[1729719396334,10.18761303,2508.8,2508.3,3.2078]
[1729719396335,0.39907,2508.4,2508.3,3.2078]
[1729719396636,4.67382918,2508.4,2508.3,3.33260452]
[1729719397540,5.10782918,2508.4,2508.3,3.2078]
[1729719398846,5.10782918,2508.4,2508.3,3.33261027]
[1729719402437,5.10782918,2508.4,2508.3,0.12481027]
[1729719402937,5.11575918,2508.4,2507.9,4.1048]
[1729719403138,3.12,2508.3,2508.0,0.72365252]
[1729719403338,0.39911,2508.2,2508.1,0.12481945]
[1729719403534,4.76793229,2508.2,2508.0,0.39913]
[1729719404642,4.76793229,2508.2,2507.9,4.1048]
[1729719404643,4.36882229,2508.2,2507.9,3.2078]
[1729719404838,4.36882229,2508.2,2508.0,0.12482049]
[1729719405042,4.76793229,2508.2,2508.1,0.12482049]
[1729719405746,0.39914,2508.0,2507.9,3.2078]
[1729719405948,0.39914,2508.0,2507.9,3.33262432]
[1729719406245,4.80882192,2508.0,2507.9,3.33262432]
[1729719407045,4.80882192,2508.0,2507.9,3.33263083]
[1729719407651,8.79602192,2508.0,2507.9,0.12483083]
[1729719408042,0.39918,2507.8,2507.6,0.39919]
[1729719408240,0.39918,2507.8,2507.7,0.12483799]
[1729719408552,4.85246462,2507.8,2507.7,0.12483799]
[1729719408742,0.39919,2507.7,2507.5,0.39921]
[1729719408946,0.39919,2507.7,2507.6,0.12484382]
[1729719409345,4.86550838,2507.7,2507.6,0.12484382]
[1729719409647,4.86550838,2507.7,2507.6,0.3992]
[1729719410946,4.86550838,2507.7,2507.6,0.52404113]
[1729719411146,4.86550838,2507.7,2507.6,0.64888452]
[1729719411550,4.46631838,2507.7,2507.6,0.64888452]
[1729719411846,0.39912,2508.2,2507.6,5.43543014]
[1729719412050,3.6332,2508.3,2507.7,3.53237901]
[1729719412255,4.30767093,2508.1,2508.0,3.60694]
[1729719412549,0.407,2508.4,2508.3,0.39909]
[1729719412958,4.75111531,2508.4,2508.3,0.39909]
[1729719414553,0.407,2508.4,2508.3,4.38549]
[1729719420353,0.407,2508.4,2508.3,4.51029198]
[1729719426157,0.407,2508.4,2508.3,4.38549]
[1729719426360,0.407,2508.4,2508.3,4.51029385]
[1729719428268,2.24607,2508.4,2508.3,0.12480385]
[1729719429959,2.24607,2508.4,2508.3,0.12480933]
[1729719432767,2.24607,2508.4,2508.3,0.52389933]
[1729719433760,2.24607,2508.4,2508.3,0.39909]
[1729719434066,2.24607,2508.4,2508.3,0.52390207]
[1729719435258,1.847,2508.4,2508.3,0.52390207]
[1729719437463,1.847,2508.4,2508.3,0.39909]
[1729719437663,1.847,2508.4,2508.3,0.52390188]
[1729719441268,1.847,2508.4,2508.3,0.39909]
[1729719441573,1.847,2508.4,2508.3,0.523907]
[1729719448974,1.847,2508.4,2508.3,0.5239012]
[1729719452576,1.847,2508.4,2508.3,0.39909]
[1729719452783,1.847,2508.4,2508.3,0.5239012]
[1729719453081,1.847,2508.4,2508.3,0.52390123]
[1729719454277,1.847,2508.4,2508.3,0.72359941]
[1729719456485,1.847,2508.4,2508.3,0.72359769]
[1729719457979,1.847,2508.4,2508.3,0.97321857]
[1729719460184,1.847,2508.4,2508.3,0.72359769]
[1729719464283,1.847,2508.4,2508.3,0.97321779]
[1729719464891,1.847,2508.4,2508.3,0.72359769]
[1729719465287,1.847,2508.4,2508.3,0.7235965]
[1729719467185,1.847,2508.4,2508.3,0.97322062]
[1729719467783,1.847,2508.4,2508.3,0.97322575]
[1729719469191,0.407,2508.4,2508.3,0.97322575]
[1729719471493,0.407,2508.4,2508.3,0.97322554]
[1729719473594,0.407,2508.4,2508.3,2.01877419]
[1729719475392,0.407,2508.4,2508.3,1.56945072]
[1729719475587,0.407,2508.4,2508.3,1.44463865]
[1729719476792,0.407,2508.4,2508.3,2.01877401]
[1729719477691,0.407,2508.4,2508.3,2.01877345]
[1729719478295,0.407,2508.4,2508.3,2.01877375]
[1729719479499,0.407,2508.4,2508.3,0.9732251]
[1729719479700,0.407,2508.4,2508.3,2.01877375]
[1729719487803,0.407,2508.4,2508.3,0.9732251]
[1729719488301,0.407,2508.4,2508.3,2.02138538]
[1729719493804,0.407,2508.4,2508.3,2.02138607]
[1729719496708,0.407,2508.4,2508.3,3.69149273]
[1729719496912,0.407,2508.4,2508.3,2.02138607]
[1729719497915,0.407,2508.4,2508.3,1.44725028]
[1729719498207,0.407,2508.4,2508.3,2.02138577]
[1729719500509,0.407,2508.4,2508.3,2.02138299]
[1729719501414,0.407,2508.4,2508.3,2.021383]
[1729719505320,0.407,2508.4,2508.3,2.02138334]
[1729719507112,0.80607,2508.4,2508.3,2.02138334]
[1729719507514,0.80607,2508.4,2508.3,0.7236046]
[1729719507715,2.24607,2508.4,2508.3,0.97323122]
[1729719508417,10.46315368,2508.4,2508.3,0.37443993]
[1729719508717,0.39912,2508.1,2508.0,1.44737118]
[1729719508921,1.83912,2508.1,2508.0,0.39912]
[1729719509123,6.45842121,2508.1,2508.0,0.39912]
[1729719510721,6.45842121,2508.1,2507.8,0.886]
[1729719510722,0.39915,2508.0,2507.9,0.39914]
[1729719510922,1.83915,2508.0,2507.9,0.39914]
[1729719511125,6.25772973,2508.0,2507.9,0.39914]
[1729719511723,5.85857973,2508.0,2507.9,0.39914]
[1729719512625,6.25771973,2508.0,2507.9,0.39914]
[1729719514523,0.4303,2508.3,2507.9,5.4272]
[1729719514719,0.4303,2508.3,2508.2,1.83911]
[1729719514922,0.407,2508.4,2508.3,0.39909]
[1729719515128,0.407,2508.4,2508.3,1.83909]
[1729719515430,0.407,2508.4,2508.3,2.23809]
[1729719518624,0.407,2508.4,2508.3,2.43777833]
[1729719519827,0.407,2508.4,2508.3,2.23809]
[1729719520027,0.407,2508.4,2508.3,2.43777904]
[1729719520228,0.407,2508.4,2508.3,2.23809]
[1729719520429,0.407,2508.4,2508.3,2.43777925]
[1729719520726,0.407,2508.4,2508.3,2.56258434]
[1729719522130,0.407,2508.4,2508.3,2.81219178]
[1729719524232,0.407,2508.4,2508.3,2.56258434]
[1729719525729,0.407,2508.4,2508.3,2.81219065]
[1729719526134,0.407,2508.4,2508.3,2.56258434]
[1729719526535,1.44,2508.6,2508.5,0.39906]
[1729719526730,1.44,2508.6,2508.5,0.72355434]
[1729719526928,5.59077372,2508.6,2508.5,0.72355434]
[1729719527127,5.98981372,2508.6,2508.5,0.72355434]
[1729719527327,5.98981372,2508.6,2508.5,0.52386509]
[1729719528132,5.59077372,2508.6,2508.5,0.52386509]
[1729719530230,4.15077372,2508.6,2508.5,0.52386509]
[1729719531133,4.15077372,2508.6,2508.5,0.52386388]
[1729719531441,4.15077372,2508.6,2508.5,0.52386393]
[1729719534736,4.15077372,2508.6,2508.5,0.39906]
[1729719534939,4.15077372,2508.6,2508.5,0.52386388]
[1729719536936,4.15077372,2508.6,2508.5,0.39906]
[1729719537144,4.15077372,2508.6,2508.5,0.52386381]
[1729719538140,4.55677372,2508.6,2508.5,0.52386381]
[1729719538534,4.55677372,2508.6,2508.5,0.52386377]
[1729719541635,4.55677372,2508.6,2508.5,0.52386303]
[1729719544843,4.55677372,2508.6,2508.5,0.52386374]
[1729719552354,4.55677372,2508.6,2508.5,0.52386387]
[1729719555549,4.55677372,2508.6,2508.5,0.39906]
[1729719555754,4.55677372,2508.6,2508.5,0.52386389]
[1729719557253,4.55677372,2508.6,2508.5,0.7235489]
[1729719560450,4.55677372,2508.6,2508.5,0.97315497]
[1729719560849,4.55677372,2508.6,2508.5,0.7235489]
[1729719562856,4.55677372,2508.6,2508.5,0.39906]
[1729719563054,4.55677372,2508.6,2508.5,0.7235492]
[1729719563254,4.95581372,2508.6,2508.5,0.39906]
[1729719563450,4.95581372,2508.6,2508.5,0.59874651]
[1729719563451,4.55677372,2508.6,2508.5,0.59874651]
[1729719563647,4.55677372,2508.6,2508.5,0.72355058]
[1729719564958,4.55677372,2508.6,2508.5,0.97315674]
[1729719565163,4.55677372,2508.6,2508.5,0.72355058]
[1729719565350,4.55677372,2508.6,2508.5,0.97315709]
[1729719570454,4.55677372,2508.6,2508.5,0.97315773]
[1729719578064,4.55677372,2508.6,2508.5,0.97315527]
[1729719581072,4.55677372,2508.6,2508.5,0.97315536]
[1729719581871,4.55677372,2508.6,2508.5,0.97315454]
[1729719583167,4.55677372,2508.6,2508.5,0.72354822]
[1729719583572,4.55677372,2508.6,2508.5,0.97315515]
[1729719585765,4.55677372,2508.6,2508.5,0.39906]
[1729719585969,4.55677372,2508.6,2508.5,0.97315697]
[1729719588365,4.55677372,2508.6,2508.5,1.85615697]
[1729719592868,4.55677372,2508.6,2508.5,1.85615685]
[1729719596479,4.55677372,2508.6,2508.5,1.85614943]
[1729719596685,4.55677372,2508.6,2508.5,1.48174328]
[1729719596874,4.55677372,2508.6,2508.5,1.73134736]
[1729719597074,4.55677372,2508.6,2508.5,1.8561494]
[1729719597275,4.55677372,2508.6,2508.5,1.28206]
[1729719599075,4.95581372,2508.6,2508.5,1.8561494]
[1729719599383,4.95581372,2508.6,2508.5,0.9731494]
[1729719599582,4.95581372,2508.6,2508.5,0.39906]
[1729719600287,4.95581372,2508.6,2508.3,0.39908]
[1729719600288,0.39909,2508.4,2508.3,0.39908]
[1729719600481,9.98317372,2508.6,2508.3,1.44]
[1729719600482,0.4291,2508.5,2508.3,1.44]
[1729719600787,0.4291,2508.5,2508.4,1.83907]
[1729719600973,0.4291,2508.5,2508.1,3.45304042]
[1729719600974,0.4291,2508.5,2508.3,0.39909]
[1729719601177,0.4033,2508.4,2508.3,1.28209]
[1729719601377,0.4033,2508.4,2508.3,2.72209]
[1729719601576,0.4033,2508.4,2508.3,8.37382082]
[1729719601778,0.4033,2508.4,2508.3,9.94606124]
[1729719604488,0.4291,2508.5,2508.4,0.39907]
[1729719604690,0.4291,2508.5,2508.4,2.06432465]
[1729719604984,0.4291,2508.5,2508.4,6.62481534]
[1729719605188,0.4291,2508.5,2508.4,2.63841534]
[1729719605786,0.4291,2508.5,2508.4,4.21065576]
[1729719607585,0.4291,2508.5,2508.4,5.09365576]
[1729719608391,0.4291,2508.5,2508.4,3.52141262]
[1729719608891,0.4291,2508.5,2508.4,4.96141262]
[1729719609090,0.4291,2508.5,2508.4,3.29615797]
[1729719609293,0.4291,2508.5,2508.4,6.53356732]
[1729719609788,0.8158,2508.6,2508.5,0.39906]
[1729719609985,0.8158,2508.6,2508.5,8.0647163]
[1729719610692,0.4216,2508.8,2508.5,7.6656563]
[1729719610891,0.4118,2508.7,2508.6,2.63818315]
[1729719611286,0.4118,2508.7,2508.6,6.62458315]
[1729719611689,0.4118,2508.7,2508.6,8.19682357]
[1729719611890,0.4118,2508.7,2508.6,9.6365648]
[1729719612088,0.4118,2508.7,2508.6,9.63651212]
[1729719612592,0.4118,2508.7,2508.6,8.0642717]
[1729719612794,0.4118,2508.7,2508.6,6.39947529]
[1729719613199,0.4118,2508.7,2508.6,4.95947529]
[1729719613492,0.4118,2508.7,2508.6,6.39947529]
[1729719615101,0.4216,2508.8,2508.7,0.39903]
[1729719615292,0.4216,2508.8,2508.7,2.41306529]
[1729719615490,0.4216,2508.8,2508.7,6.39946529]
[1729719615993,2.0147985,2509.0,2508.7,2.01403529]
[1729719616193,0.8393,2509.2,2509.1,0.39896]
[1729719616393,0.8393,2509.2,2509.1,3.04541473]
[1729719618396,0.8393,2509.2,2509.1,10.23881473]
[1729719618901,0.8393,2509.2,2509.1,10.48832204]
[1729719619398,0.8393,2509.2,2509.1,9.91436]
[1729719619603,0.8393,2509.2,2509.1,10.48823513]
[1729719620201,0.8393,2509.2,2509.1,10.28862639]
[1729719622693,0.8393,2509.2,2509.1,10.03911546]
[1729719623299,0.8393,2509.2,2509.1,9.91436]
[1729719623505,0.8393,2509.2,2509.1,10.03911727]
[1729719624898,0.8393,2509.2,2509.1,6.83131727]
[1729719625099,0.8393,2509.2,2509.1,10.03911727]
[1729719625294,0.8393,2509.2,2509.1,9.91436]
[1729719626301,0.8393,2509.2,2509.1,6.70656]
[1729719626807,0.8393,2509.2,2509.1,9.91436]
[1729719627308,0.8393,2509.2,2509.1,6.83131917]
[1729719627511,0.8393,2509.2,2509.1,10.03911917]
[1729719628009,0.8393,2509.2,2509.1,6.83131917]
[1729719628208,0.8393,2509.2,2509.1,6.05351917]
[1729719628407,0.8393,2509.2,2509.1,2.84571917]
[1729719628811,0.8393,2509.2,2509.1,6.05351917]
[1729719630101,0.8393,2509.2,2509.1,10.03911917]
[1729719630705,0.8393,2509.2,2509.1,10.03911794]
[1729719631206,0.8393,2509.2,2509.1,6.05351794]
[1729719634313,0.8393,2509.2,2509.1,5.92876]
[1729719634617,0.8393,2509.2,2509.1,6.05351777]
[1729719635112,0.8393,2509.2,2509.1,2.84571777]
[1729719635304,0.8393,2509.2,2509.1,2.72096]
[1729719635507,0.4336,2509.4,2509.3,0.39893]
[1729719635813,0.4336,2509.4,2509.3,1.83893]
[1729719637608,0.4336,2509.4,2509.3,2.72093]
[1729719642417,0.4336,2509.4,2509.3,2.84567992]
[1729719645014,0.4336,2509.4,2509.3,2.72093]
[1729719645215,0.4336,2509.4,2509.3,2.84568764]
[1729719645416,0.4336,2509.4,2509.3,2.84568636]
[1729719646917,0.4336,2509.4,2509.3,1.96368636]
[1729719647220,0.4336,2509.4,2509.3,2.71993]
[1729719647417,0.4336,2509.4,2509.3,2.84468791]
[1729719650620,0.4336,2509.4,2509.3,2.71993]
[1729719654415,0.4336,2509.4,2509.3,2.84468428]
[1729719655328,0.4336,2509.4,2509.3,2.84468439]
[1729719656436,0.4336,2509.4,2509.3,2.71993]
[1729719656821,0.4336,2509.4,2509.3,2.8446844]
[1729719657523,0.4336,2509.4,2509.3,3.04429153]
[1729719659926,0.4336,2509.4,2509.3,3.04429076]
[1729719660325,0.4336,2509.4,2509.3,3.29379906]
[1729719661019,0.4336,2509.4,2509.3,4.33732893]
[1729719662346,0.4336,2509.4,2509.3,4.13772231]
[1729719662628,0.4336,2509.4,2509.3,6.00140993]
[1729719662835,0.4336,2509.4,2509.3,6.0014097]
[1729719663021,0.4336,2509.4,2509.3,5.1204097]
[1729719663218,0.4336,2509.4,2509.3,4.33732726]
[1729719666234,0.4336,2509.4,2509.3,4.33733063]
[1729719666528,0.83252,2509.4,2509.3,3.76345987]
[1729719666734,0.4336,2509.4,2509.3,4.33733061]
[1729719668434,0.4336,2509.4,2509.3,6.01176396]
[1729719668936,0.4336,2509.4,2509.3,4.33733061]
[1729719669929,0.4336,2509.4,2509.3,6.540508]
[1729719670132,0.4336,2509.4,2509.3,6.54050452]
[1729719671730,0.4336,2509.4,2509.3,6.54051766]
[1729719671927,0.4336,2509.4,2509.3,4.96827724]
[1729719672629,0.4336,2509.4,2509.3,4.71876973]
[1729719672829,0.4336,2509.4,2509.3,3.04428975]
[1729719673933,0.4336,2509.4,2509.3,3.04429415]
[1729719674537,3.2078,2509.8,2509.7,0.39887]
[1729719674735,0.99688,2510.5,2509.7,2.16320874]
[1729719674736,4.4609,2510.1,2509.7,2.16320874]
[1729719674943,1.2531,2510.1,2510.0,1.83882]
[1729719675243,5.74248786,2510.1,2510.0,2.16315874]
[1729719675540,1.2531,2510.1,2510.0,2.16315874]
[1729719676437,1.2531,2510.1,2510.0,1.96357544]
[1729719677339,3.2078,2510.4,2510.0,1.56475544]
[1729719677531,3.2078,2510.4,2510.3,1.83877]
[1729719677532,4.04226,2510.4,2510.3,1.83877]
[1729719677927,12.30039384,2510.4,2510.3,1.83877]
[1729719679440,12.30039384,2510.4,2510.3,2.71777]
[1729719680437,9.09259384,2510.4,2510.3,2.71777]
[1729719683343,9.09259384,2510.4,2510.3,2.319]
[1729719684044,9.09259384,2510.4,2510.3,2.71777]
[1729719686049,9.09259384,2510.4,2510.3,2.319]
[1729719686244,9.09259384,2510.4,2510.3,1.44]
[1729719687243,0.39877,2510.3,2510.2,2.71779]
[1729719687739,4.66770612,2510.3,2510.2,2.71779]
[1729719691141,4.66770612,2510.3,2510.2,2.319]
[1729719691651,4.66770612,2510.3,2510.2,1.44]
[1729719691850,4.66770612,2510.3,2510.2,2.319]
[1729719692448,4.66770612,2510.3,2510.2,2.71779]
[1729719693648,4.66770612,2510.3,2510.2,1.83879]
[1729719693854,4.66770612,2510.3,2510.2,2.71779]
[1729719709769,4.66770612,2510.3,2510.2,3.13009]
[1729719714374,4.66770612,2510.3,2510.2,1.83879]
[1729719714664,4.66770612,2510.3,2510.2,2.71679]
[1729719716670,4.66770612,2510.3,2510.2,1.44]
[1729719716878,4.66770612,2510.3,2509.9,4.25201335]
[1729719716879,0.39882,2510.1,2509.9,4.25201335]
[1729719717168,0.39882,2510.1,2510.0,2.71681]
[1729719717562,4.79655678,2510.1,2510.0,2.71681]
[1729719717774,4.79655678,2510.1,2510.0,2.84153367]
[1729719718665,4.79655678,2510.1,2510.0,1.96353367]
[1729719718871,4.79655678,2510.1,2510.0,3.04109078]
[1729719720371,4.79655678,2510.1,2510.0,3.29053659]
[1729719720665,4.79655678,2510.1,2510.0,3.04109078]
[1729719721867,0.39876,2510.4,2510.3,0.39877]
[1729719722077,0.39876,2510.4,2510.3,0.72304122]
[1729719722271,4.78938182,2510.4,2510.3,0.39877]
[1729719722473,4.78938182,2510.4,2510.3,0.59831704]
[1729719722772,4.78938182,2510.4,2510.3,0.84774855]
[1729719723075,4.78938182,2510.4,2510.3,0.5234869]
[1729719723967,4.78938182,2510.4,2510.3,0.1247169]
[1729719724174,4.39062182,2510.4,2510.2,2.71678]
[1729719724374,4.78938182,2510.4,2510.3,0.12471799]
[1729719725167,4.78938182,2510.4,2510.3,0.32426615]
[1729719725873,4.78938182,2510.4,2510.3,0.72303615]
[1729719726076,4.78938182,2510.4,2510.3,0.32426615]
[1729719726273,4.78938182,2510.4,2510.3,1.37146058]
[1729719727470,4.78938182,2510.4,2510.3,1.37145843]
[1729719727771,4.78938182,2510.4,2510.3,1.77022843]
[1729719727971,5.21668182,2510.4,2510.3,1.77022843]
[1729719728478,5.63938182,2510.4,2510.3,0.324264]
[1729719729377,5.63938182,2510.4,2510.3,0.723034]
[1729719730777,5.63938182,2510.4,2510.3,0.72303264]
[1729719732077,5.63938182,2510.4,2510.3,0.32426264]
[1729719733075,6.68062182,2510.4,2509.9,4.25499443]
[1729719733270,0.39882,2510.0,2509.9,5.04663]
[1729719733471,0.39882,2510.0,2509.9,5.29043885]
[1729719733780,4.92928996,2510.0,2509.9,5.04663]
[1729719733968,4.92928996,2510.0,2509.9,6.73043784]
[1729719734172,4.92928996,2510.0,2509.9,5.04663]
[1729719735281,8.91328996,2510.0,2509.9,5.04663]
[1729719736881,9.74528996,2510.0,2509.9,5.04663]
[1729719737081,9.74528996,2510.0,2509.9,4.6478]
[1729719737276,9.74528996,2510.0,2509.9,5.04664]
[1729719738079,0.39892,2509.5,2509.2,4.0219]
[1729719738379,0.39892,2509.5,2509.4,1.83891]
[1729719738985,0.39892,2509.5,2509.4,2.71591]
[1729719739281,0.39892,2509.5,2509.4,2.317]
[1729719740381,0.39892,2509.5,2509.4,2.71592]
[1729719740580,0.39892,2509.5,2509.4,2.317]
[1729719741187,0.39892,2509.5,2509.4,2.71592]
[1729719742086,3.60672,2509.5,2509.4,2.71592]
[1729719742285,3.60672,2509.5,2509.4,2.317]
[1729719742675,3.60672,2509.5,2509.4,2.71592]
[1729719742878,7.1926,2509.5,2509.3,0.437]
[1729719743083,8.17701304,2509.5,2509.4,1.44]
[1729719743681,13.60181304,2509.5,2509.4,1.44]
[1729719743885,0.39893,2509.3,2509.2,1.44]
[1729719744183,4.68363187,2509.3,2509.2,1.44]
[1729719746290,7.89143187,2509.3,2509.2,1.44]
[1729719746790,11.87703187,2509.3,2509.2,1.44]
[1729719747191,7.89143187,2509.3,2509.2,1.44]
[1729719751189,7.89143187,2509.3,2509.2,1.83895]
[1729719753192,7.89143187,2509.3,2509.2,1.44]
[1729719753496,7.89143187,2509.3,2509.2,1.83895]
[1729719754192,7.89143187,2509.3,2509.2,1.44]
[1729719754596,4.68363187,2509.3,2509.2,1.44]
[1729719755093,7.89143187,2509.3,2509.2,1.44]
[1729719756095,4.68363187,2509.3,2509.2,1.44]
[1729719756291,7.89143187,2509.3,2509.2,1.44]
[1729719756785,4.68363187,2509.3,2509.2,1.44]
[1729719756989,7.89143187,2509.3,2509.2,1.44]
[1729719758193,12.91810187,2509.3,2509.1,1.44]
[1729719758495,12.91810187,2509.3,2508.7,0.8111]
[1729719758496,0.39899,2508.9,2508.8,1.69849]
[1729719758698,0.39899,2508.9,2508.8,3.13849]
[1729719758899,4.56376317,2508.9,2508.8,3.13849]
[1729719759598,4.97886317,2508.9,2508.8,3.13849]
[1729719762202,5.39266317,2508.9,2508.8,3.13849]
[1729719763900,5.39266317,2508.9,2508.8,2.7395]
[1729719764094,5.39266317,2508.9,2508.8,3.13851]
[1729719764896,9.37826317,2508.9,2508.8,1.8625]
[1729719765093,5.39266317,2508.9,2508.8,1.8625]
[1729719765607,9.37826317,2508.9,2508.8,2.26151]
[1729719765992,9.37826317,2508.9,2508.8,1.8625]
[1729719767197,5.39266317,2508.9,2508.8,1.8625]
[1729719768498,5.39266317,2508.9,2508.8,2.26151]
[1729719768698,5.39266317,2508.9,2508.8,1.8625]
[1729719768899,5.39266317,2508.9,2508.8,1.44]
[1729719769600,5.39266317,2508.9,2508.8,1.83901]
[1729719769796,5.39266317,2508.9,2508.8,1.44]
[1729719770699,5.39266317,2508.9,2508.8,1.83901]
[1729719770906,5.39266317,2508.9,2508.8,1.44]
[1729719771606,0.39901,2508.8,2508.7,1.83902]
[1729719771807,0.83191,2508.8,2508.7,1.83902]
[1729719772103,4.70519122,2508.8,2508.7,1.83902]
[1729719772405,5.10420122,2508.8,2508.7,1.83902]
[1729719776393,8.31200122,2508.8,2508.7,1.83902]
[1729719777212,5.10420122,2508.8,2508.7,1.83902]
[1729719777710,8.31200122,2508.8,2508.7,1.83902]
[1729719778104,5.10420122,2508.8,2508.7,1.83902]
[1729719778502,8.31200122,2508.8,2508.7,1.83902]
[1729719780697,7.91299122,2508.8,2508.5,0.4197]
[1729719780905,0.39903,2508.7,2508.6,1.83904]